fUSD/lending_fUSD_20240905
["ID","MTS","AMOUNT","RATE_DAILY","PERIOD"]
[337214915,1725502243002,-500.0,0.00014969,2]
[337214916,1725502243011,-500.0,0.00014969,2]
[337214917,1725502243020,-500.0,0.00014969,2]
[337214918,1725502243029,-596.20347935,0.00014969,2]
[337214919,1725502243038,-500.0,0.00014969,2]
[337214920,1725502243047,-500.0,0.00014969,2]
[337214921,1725502243057,-500.0,0.00014969,2]
[337214922,1725502243067,-500.0,0.00014969,2]
[337214923,1725502243076,-500.0,0.00014969,2]
[337214924,1725502243085,-500.0,0.00014969,2]
[337214925,1725502243094,-500.0,0.00014969,2]
[337214926,1725502243103,-500.0,0.00014969,2]
[337214927,1725502243113,-500.0,0.00014969,2]
[337214928,1725502243122,-500.0,0.00014969,2]
[337214929,1725502243131,-500.0,0.00014969,2]
[337214930,1725502243140,-575.18,0.00014969,2]
[337214931,1725502243150,-500.0,0.00014969,2]
[337214932,1725502243160,-500.0,0.00014969,2]
[337214933,1725502243169,-1024.2,0.00014969,2]
[337214934,1725502243178,-500.0,0.00014969,2]
[337214935,1725502243188,-500.0,0.00014969,2]
[337214936,1725502243199,-500.0,0.00014969,2]
[337214937,1725502243208,-500.0,0.00014969,2]
[337214938,1725502243217,-500.0,0.00014969,2]
[337214939,1725502243227,-500.0,0.00014969,2]
[337214940,1725502243236,-347.96568903,0.00014969,2]
[337214941,1725502243246,-500.0,0.00014969,2]
[337214942,1725502243255,-500.0,0.00014969,2]
[337214943,1725502243265,-500.0,0.00014969,2]
[337214944,1725502243274,-500.0,0.00014969,2]
[337214945,1725502243284,-797.12,0.00014969,2]
[337214946,1725502243294,-307.42120996,0.00014969,2]
[337214947,1725502243303,-500.0,0.00014969,2]
[337214948,1725502243312,-561.36,0.00014969,2]
[337214949,1725502243322,-500.0,0.00014969,2]
[337214950,1725502243331,-500.0,0.00014969,2]
[337214951,1725502243341,-500.0,0.00014969,2]
[337214952,1725502243351,-500.0,0.00014969,2]
[337214953,1725502243360,-500.0,0.00014969,2]
[337214954,1725502243372,-500.0,0.00014969,2]
[337214955,1725502243386,-500.0,0.00014969,2]
[337214956,1725502243396,-504.37723244,0.00014969,2]
[337214957,1725502243405,-500.0,0.00014969,2]
[337214958,1725502243414,-838.99,0.00014969,2]
[337214959,1725502243425,-500.0,0.00014969,2]
[337214960,1725502243434,-500.0,0.00014969,2]
[337214961,1725502243443,-818.93,0.00014969,2]
[337214962,1725502243452,-500.0,0.00014969,2]
[337214963,1725502243463,-664.81,0.00014969,2]
[337214964,1725502243473,-500.0,0.00014969,2]
[337214965,1725502243482,-500.0,0.00014969,2]
[337214966,1725502243492,-500.0,0.00014969,2]
[337214967,1725502243501,-500.0,0.00014969,2]
[337214968,1725502243510,-500.61912562,0.00014969,2]
[337214969,1725502243520,-1145.4,0.00014969,2]
[337214970,1725502243529,-500.0,0.00014969,2]
[337214971,1725502243538,-598.14,0.00014971,2]
[337214972,1725502243547,-947.64,0.00014971,2]
[337214973,1725502243556,-500.0,0.00014971,2]
[337214974,1725502243565,-927.4,0.00014971,2]
[337214975,1725502243574,-500.0,0.00014971,2]
[337214976,1725502243583,-677.56,0.00014971,2]
[337214977,1725502243592,-500.0,0.00014971,2]
[337214978,1725502243602,-500.0,0.00014971,2]
[337214979,1725502243611,-830.56,0.00014971,2]
[337214980,1725502243622,-500.0,0.00014971,2]
[337214981,1725502243631,-500.0,0.00014971,2]
[337214982,1725502243640,-510.23428686,0.00014971,2]
[337214983,1725502243649,-500.0,0.00014971,2]
[337214984,1725502243658,-500.0,0.00014971,2]
[337214985,1725502243667,-709.38,0.00014971,2]
[337214986,1725502243677,-1019.32,0.00014971,2]
[337214987,1725502243686,-500.0,0.00014971,2]
[337214988,1725502243695,-500.0,0.00014971,2]
[337214989,1725502243705,-500.0,0.00014971,2]
[337214990,1725502243715,-1016.74,0.00014971,2]
[337214991,1725502243724,-8066.97,0.00014971,2]
[337214992,1725502243734,-5714.32,0.00014971,2]
[337214993,1725502243743,-8553.38,0.00014971,2]
[337214994,1725502243752,-500.0,0.00014971,2]
[337214995,1725502243762,-500.0,0.00014971,2]
[337214996,1725502243771,-500.0,0.00014971,2]
[337214997,1725502243780,-856.41,0.00014971,2]
[337214998,1725502243789,-500.0,0.00014971,2]
[337214999,1725502243799,-1406.35,0.00014971,2]
[337215000,1725502243808,-500.0,0.00014971,2]
[337215001,1725502243817,-513.4,0.00014971,2]
[337215002,1725502243827,-500.0,0.00014971,2]
[337215005,1725502243836,-500.0,0.00014971,2]
[337215006,1725502243845,-500.0,0.00014971,2]
[337215007,1725502243855,-500.0,0.00014971,2]
[337215008,1725502243864,-500.0,0.00014971,2]
[337215009,1725502243874,-1019.26,0.00014971,2]
[337215010,1725502243883,-500.0,0.00014971,2]
[337215011,1725502243893,-623.61,0.00014971,2]
[337215012,1725502243903,-500.0,0.00014971,2]
[337215013,1725502243913,-1044.58,0.00014971,2]
[337215014,1725502243922,-500.0,0.00014971,2]
[337215015,1725502243932,-500.6066494,0.00014971,2]
[337215016,1725502243941,-500.0,0.00014971,2]
[337215017,1725502243950,-500.0,0.00014971,2]
[337215018,1725502243959,-500.0,0.00014971,2]
[337215019,1725502243968,-1493.11,0.00014971,2]
[337215020,1725502243978,-500.0,0.00014971,2]
[337215021,1725502243987,-621.25,0.00014971,2]
[337215022,1725502243997,-500.0,0.00014973,2]
[337215023,1725502244006,-500.0,0.00014973,2]
[337215024,1725502244015,-500.0,0.00014973,2]
[337215025,1725502244025,-500.0,0.00014973,2]
[337215026,1725502244034,-730.44,0.00014973,2]
[337215027,1725502244043,-500.0,0.00014973,2]
[337215028,1725502244053,-1716.15,0.00014973,2]
[337215029,1725502244062,-308.76540172,0.00014973,2]
[337215030,1725502244071,-500.0,0.00014973,2]
[337215031,1725502244081,-500.0,0.00014973,2]
[337215032,1725502244091,-7530.58,0.00014973,2]
[337215033,1725502244100,-2647.56,0.00014973,2]
[337215034,1725502244110,-1781.56,0.00014973,2]
[337215035,1725502244120,-500.0,0.00014973,2]
[337215036,1725502244129,-532.89,0.00014973,2]
[337215037,1725502244139,-598.14,0.00014974,2]
[337215038,1725502244149,-947.64,0.00014974,2]
[337215039,1725502244159,-194.34107225,0.00014974,2]
[337215040,1725502244169,-927.4,0.00014974,2]
[337215041,1725502244178,-509.72735558,0.00014974,2]
[337215042,1725502244188,-677.56,0.00014974,2]
[337215043,1725502244197,-500.0,0.00014974,2]
[337215044,1725502244207,-500.0,0.00014974,2]
[337215045,1725502244217,-830.56,0.00014974,2]
[337215046,1725502244227,-500.0,0.00014974,2]
[337215047,1725502244236,-500.0,0.00014974,2]
[337215048,1725502244246,-500.0,0.00014974,2]
[337215049,1725502244255,-511.05451274,0.00014974,2]
[337215050,1725502244264,-709.38,0.00014974,2]
[337215051,1725502244274,-1019.32,0.00014974,2]
[337215052,1725502244283,-500.0,0.00014974,2]
[337215053,1725502244292,-500.0,0.00014974,2]
[337215054,1725502244302,-500.0,0.00014974,2]
[337215055,1725502244312,-1016.74,0.00014974,2]
[337215056,1725502244321,-8066.97,0.00014974,2]
[337215057,1725502244331,-5714.32,0.00014974,2]
[337215058,1725502244340,-8553.38,0.00014974,2]
[337215059,1725502244349,-500.0,0.00014974,2]
[337215060,1725502244359,-500.0,0.00014974,2]
[337215061,1725502244368,-500.0,0.00014974,2]
[337215062,1725502244377,-856.41,0.00014974,2]
[337215063,1725502244390,-500.0,0.00014974,2]
[337215064,1725502244400,-1406.35,0.00014974,2]
[337215065,1725502244409,-500.0,0.00014974,2]
[337215066,1725502244419,-513.4,0.00014974,2]
[337215067,1725502244429,-500.0,0.00014974,2]
[337215068,1725502244438,-500.0,0.00014974,2]
[337215069,1725502244448,-500.0,0.00014974,2]
[337215070,1725502244458,-500.0,0.00014974,2]
[337215071,1725502244468,-500.0,0.00014974,2]
[337215072,1725502244478,-1019.26,0.00014974,2]
[337215073,1725502244487,-500.0,0.00014974,2]
[337215074,1725502244497,-623.61,0.00014974,2]
[337215075,1725502244507,-500.0,0.00014974,2]
[337215076,1725502244516,-1044.58,0.00014974,2]
[337215077,1725502244525,-500.0,0.00014974,2]
[337215078,1725502244535,-500.0,0.00014974,2]
[337215079,1725502244544,-500.0,0.00014974,2]
[337215080,1725502244553,-500.0,0.00014974,2]
[337215081,1725502244563,-1493.11,0.00014974,2]
[337215082,1725502244572,-500.0,0.00014974,2]
[337215083,1725502244581,-621.25,0.00014974,2]
[337215084,1725502244591,-500.0,0.00014977,2]
[337215085,1725502244599,-500.0,0.00014977,2]
[337215086,1725502244609,-500.0,0.00014977,2]
[337215087,1725502244618,-500.0,0.00014977,2]
[337215088,1725502244627,-786.89,0.00014977,2]
[337215089,1725502244638,-500.0,0.00014977,2]
[337215090,1725502244647,-477.67671141,0.00014977,2]
[337215091,1725502244656,-500.0,0.00014977,2]
[337215092,1725502244666,-500.0,0.00014977,2]
[337215093,1725502244675,-500.0,0.00014977,2]
[337215094,1725502244685,-582.24843902,0.00014977,2]
[337215095,1725502244694,-500.0,0.00014977,2]
[337215096,1725502244703,-500.0,0.00014977,2]
[337215097,1725502244714,-500.0,0.00014977,2]
[337215098,1725502244723,-500.0,0.00014977,2]
[337215099,1725502244733,-546.52,0.00014978,2]
[337215100,1725502244743,-500.0,0.00014978,2]
[337215101,1725502244752,-500.0,0.00014978,2]
[337215102,1725502244762,-638.25,0.00014978,2]
[337215103,1725502244771,-688.18,0.00014978,2]
[337215104,1725502244781,-500.0,0.00014978,2]
[337215105,1725502244791,-500.0,0.00014978,2]
[337215106,1725502244801,-500.0,0.00014978,2]
[337215107,1725502244811,-500.0,0.00014978,2]
[337215108,1725502244820,-1629.09,0.00014978,2]
[337215109,1725502244830,-500.0,0.00014978,2]
[337215110,1725502244839,-500.0,0.00014978,2]
[337215111,1725502244849,-500.0,0.00014978,2]
[337215112,1725502244859,-500.0,0.00014978,2]
[337215113,1725502244869,-500.0,0.00014978,2]
[337215114,1725502244879,-150.5,0.00014979,30]
[337215115,1725502244889,-150.5,0.00014979,30]
[337215116,1725502244898,-2802.27,0.0001498,2]
[337215117,1725502244908,-652.69,0.0001498,2]
[337215118,1725502244918,-2751.52,0.0001498,2]
[337215119,1725502244927,-3672.75,0.0001498,2]
[337215120,1725502244937,-1524.3,0.0001498,2]
[337215121,1725502244946,-500.0,0.0001498,2]
[337215122,1725502244956,-771.03,0.0001498,2]
[337215123,1725502244965,-500.0,0.0001498,2]
[337215124,1725502244974,-3230.85,0.0001498,2]
[337215125,1725502244983,-890.6,0.0001498,2]
[337215126,1725502244993,-685.43,0.0001498,2]
[337215127,1725502245003,-1112.21,0.0001498,2]
[337215128,1725502245012,-500.0,0.0001498,2]
[337215129,1725502245021,-500.0,0.0001498,2]
[337215130,1725502245031,-500.0,0.0001498,2]
[337215131,1725502245040,-500.0,0.0001498,2]
[337215132,1725502245049,-500.0,0.0001498,2]
[337215133,1725502245059,-216.03005754,0.0001498,2]
[337215134,1725502245068,-500.0,0.00014981,2]
[337215135,1725502245078,-1016.74,0.00014981,2]
[337215136,1725502245087,-8066.97,0.00014981,2]
[337215137,1725502245096,-5714.32,0.00014981,2]
[337215138,1725502245106,-8553.38,0.00014981,2]
[337215139,1725502245115,-169.74016347,0.00014981,2]
[337215140,1725502245125,-596.32378676,0.00014981,2]
[337215141,1725502245134,-500.0,0.00014981,2]
[337215142,1725502245144,-437.47022679,0.00014981,2]
[337215143,1725502245153,-560.47314298,0.00014981,2]
[337215144,1725502245163,-730.44,0.00014981,2]
[337215145,1725502245173,-500.0,0.00014981,2]
[337215146,1725502245182,-1716.15,0.00014981,2]
[337215147,1725502245191,-500.0,0.00014981,2]
[337215148,1725502245200,-500.0,0.00014981,2]
[337215149,1725502245210,-7530.58,0.00014981,2]
[337215150,1725502245219,-2647.56,0.00014981,2]
[337215151,1725502245228,-1781.56,0.00014981,2]
[337215152,1725502245238,-500.0,0.00014981,2]
[337215153,1725502245247,-532.89,0.00014981,2]
[337215154,1725502245256,-500.0,0.00014981,2]
[337215155,1725502245266,-500.0,0.00014981,2]
[337215156,1725502245276,-500.0,0.00014981,2]
[337215157,1725502245285,-500.0,0.00014981,2]
[337215158,1725502245294,-686.71,0.00014981,2]
[337215159,1725502245304,-905.2,0.00014981,2]
[337215160,1725502245313,-500.0,0.00014981,2]
[337215161,1725502245323,-500.0,0.00014981,2]
[337215162,1725502245333,-2099.49,0.00014981,2]
[337215163,1725502245343,-598.14,0.00014982,2]
[337215164,1725502245352,-947.64,0.00014982,2]
[337215165,1725502245362,-927.4,0.00014982,2]
[337215166,1725502245372,-677.56,0.00014982,2]
[337215167,1725502245384,-500.0,0.00014982,2]
[337215168,1725502245394,-500.0,0.00014982,2]
[337215169,1725502245403,-830.56,0.00014982,2]
[337215170,1725502245618,-500.0,0.00014982,2]
[337215171,1725502245629,-500.0,0.00014982,2]
[337215172,1725502245639,-500.0,0.00014982,2]
[337215173,1725502245649,-709.38,0.00014982,2]
[337215174,1725502245659,-1019.32,0.00014982,2]
[337215175,1725502245668,-500.0,0.00014982,2]
[337215176,1725502245677,-498.3957693,0.00014982,2]
[337215177,1725502245687,-2802.27,0.00014982,2]
[337215178,1725502245696,-652.69,0.00014982,2]
[337215179,1725502245706,-2751.52,0.00014982,2]
[337215180,1725502245717,-3672.75,0.00014982,2]
[337215181,1725502245726,-1524.3,0.00014982,2]
[337215182,1725502245736,-500.0,0.00014982,2]
[337215183,1725502245745,-771.03,0.00014982,2]
[337215184,1725502245756,-500.0,0.00014982,2]
[337215185,1725502245766,-3230.85,0.00014982,2]
[337215186,1725502245775,-890.6,0.00014982,2]
[337215187,1725502245786,-685.43,0.00014982,2]
[337215188,1725502245795,-1112.21,0.00014982,2]
[337215189,1725502245805,-400.37273979,0.00014982,2]
[337215190,1725502245814,-500.0,0.00014982,2]
[337215191,1725502245824,-500.0,0.00014982,2]
[337215192,1725502245834,-730.44,0.00014982,2]
[337215193,1725502245843,-500.0,0.00014982,2]
[337215194,1725502245853,-500.0,0.00014982,2]
[337215195,1725502245862,-1716.15,0.00014982,2]
[337215196,1725502245872,-500.0,0.00014982,2]
[337215197,1725502245882,-500.0,0.00014982,2]
[337215198,1725502245891,-500.0,0.00014982,2]
[337215199,1725502245901,-210.2806896,0.00014982,2]
[337215200,1725502245910,-7530.58,0.00014982,2]
[337215201,1725502245920,-500.0,0.00014982,2]
[337215202,1725502245930,-500.0,0.00014982,2]
[337215203,1725502245939,-2647.56,0.00014982,2]
[337215204,1725502245948,-1781.56,0.00014982,2]
[337215205,1725502245958,-856.41,0.00014982,2]
[337215206,1725502245967,-500.0,0.00014982,2]
[337215207,1725502245977,-532.89,0.00014982,2]
[337215208,1725502245987,-500.0,0.00014982,2]
[337215209,1725502245996,-1406.35,0.00014982,2]
[337215210,1725502246005,-500.0,0.00014982,2]
[337215211,1725502246015,-513.4,0.00014982,2]
[337215212,1725502246024,-500.0,0.00014982,2]
[337215213,1725502246033,-500.0,0.00014982,2]
[337215214,1725502246042,-500.0,0.00014982,2]
[337215215,1725502246052,-500.0,0.00014982,2]
[337215216,1725502246061,-500.0,0.00014982,2]
[337215217,1725502246070,-1019.26,0.00014982,2]
[337215218,1725502246079,-500.0,0.00014982,2]
[337215219,1725502246088,-623.61,0.00014982,2]
[337215220,1725502246098,-500.0,0.00014982,2]
[337215221,1725502246107,-1044.58,0.00014982,2]
[337215222,1725502246117,-500.0,0.00014982,2]
[337215223,1725502246129,-500.0,0.00014982,2]
[337215224,1725502246139,-463.98138056,0.00014982,2]
[337215225,1725502246148,-579.02695226,0.00014982,2]
[337215226,1725502246158,-1493.11,0.00014982,2]
[337215227,1725502246167,-500.0,0.00014982,2]
[337215228,1725502246177,-621.25,0.00014982,2]
[337215229,1725502246187,-500.0,0.00014983,2]
[337215230,1725502246197,-2802.27,0.00014983,2]
[337215231,1725502246206,-652.69,0.00014983,2]
[337215232,1725502246215,-2751.52,0.00014983,2]
[337215233,1725502246225,-1016.74,0.00014983,2]
[337215234,1725502246234,-3672.75,0.00014983,2]
[337215236,1725502246243,-1524.3,0.00014983,2]
[337215238,1725502246253,-8066.97,0.00014983,2]
[337215239,1725502246263,-5714.32,0.00014983,2]
[337215240,1725502246272,-8553.38,0.00014983,2]
[337215241,1725502246281,-500.0,0.00014983,2]
[337215242,1725502246290,-771.03,0.00014983,2]
[337215243,1725502246300,-500.0,0.00014983,2]
[337215244,1725502246309,-3230.85,0.00014983,2]
[337215245,1725502246318,-890.6,0.00014983,2]
[337215246,1725502246328,-685.43,0.00014983,2]
[337215247,1725502246337,-1112.21,0.00014983,2]
[337215248,1725502246346,-168.80817868,0.00014983,2]
[337215249,1725502246355,-500.0,0.00014983,2]
[337215250,1725502246365,-730.44,0.00014983,2]
[337215251,1725502246376,-500.0,0.00014983,2]
[337215253,1725502246390,-500.0,0.00014983,2]
[337215254,1725502246399,-500.0,0.00014983,2]
[337215255,1725502246409,-500.0,0.00014983,2]
[337215257,1725502246419,-1716.15,0.00014983,2]
[337215259,1725502246428,-500.0,0.00014983,2]
[337215260,1725502246438,-500.0,0.00014983,2]
[337215261,1725502246447,-500.0,0.00014983,2]
[337215262,1725502246456,-264.84880614,0.00014983,2]
[337215263,1725502246468,-500.0,0.00014983,2]
[337215264,1725502246477,-500.0,0.00014983,2]
[337215265,1725502246487,-7530.58,0.00014983,2]
[337215266,1725502246496,-786.89,0.00014983,2]
[337215267,1725502246505,-500.0,0.00014983,2]
[337215268,1725502246516,-2647.56,0.00014983,2]
[337215269,1725502246525,-500.0,0.00014983,2]
[337215270,1725502246535,-1781.56,0.00014983,2]
[337215271,1725502246544,-500.0,0.00014983,2]
[337215272,1725502246553,-500.0,0.00014983,2]
[337215273,1725502246563,-532.89,0.00014983,2]
[337215274,1725502246572,-500.0,0.00014983,2]
[337215275,1725502246581,-500.0,0.00014983,2]
[337215276,1725502246590,-1015.09,0.00014983,2]
[337215277,1725502246600,-500.0,0.00014983,2]
[337215278,1725502246609,-500.0,0.00014983,2]
[337215279,1725502246618,-3124.45,0.00014983,2]
[337215280,1725502246628,-1651.21,0.00014983,2]
[337215281,1725502246637,-500.0,0.00014983,2]
[337215282,1725502246646,-500.0,0.00014983,2]
[337215283,1725502246655,-500.0,0.00014983,2]
[337215284,1725502246664,-500.0,0.00014983,2]
[337215285,1725502246674,-500.0,0.00014983,2]
[337215286,1725502246683,-500.0,0.00014983,2]
[337215287,1725502246692,-500.0,0.00014983,2]
[337215288,1725502246701,-597.0476229,0.00014983,2]
[337215289,1725502246710,-500.0,0.00014983,2]
[337215290,1725502246720,-500.0,0.00014983,2]
[337215291,1725502246729,-500.0,0.00014983,2]
[337215292,1725502246739,-500.0,0.00014983,2]
[337215293,1725502246748,-500.0,0.00014983,2]
[337215294,1725502246757,-500.0,0.00014983,2]
[337215295,1725502246766,-500.0,0.00014983,2]
[337215296,1725502246775,-500.0,0.00014983,2]
[337215297,1725502246785,-500.0,0.00014983,2]
[337215298,1725502246794,-575.18,0.00014983,2]
[337215299,1725502246803,-500.0,0.00014983,2]
[337215300,1725502246813,-500.0,0.00014983,2]
[337215301,1725502246822,-1024.2,0.00014983,2]
[337215302,1725502246831,-500.0,0.00014983,2]
[337215303,1725502246841,-500.0,0.00014983,2]
[337215304,1725502246850,-500.0,0.00014983,2]
[337215305,1725502246859,-500.0,0.00014983,2]
[337215306,1725502246868,-500.0,0.00014983,2]
[337215307,1725502246877,-500.0,0.00014983,2]
[337215308,1725502246886,-500.0,0.00014983,2]
[337215309,1725502246896,-500.0,0.00014983,2]
[337215310,1725502246905,-500.0,0.00014983,2]
[337215311,1725502246914,-500.0,0.00014983,2]
[337215312,1725502246923,-797.12,0.00014983,2]
[337215313,1725502246932,-500.0,0.00014983,2]
[337215314,1725502246942,-561.36,0.00014983,2]
[337215315,1725502246951,-500.0,0.00014983,2]
[337215316,1725502246961,-295.30728408,0.00014983,2]
[337215317,1725502246970,-500.0,0.00014983,2]
[337215318,1725502246980,-500.0,0.00014983,2]
[337215319,1725502246989,-500.0,0.00014983,2]
[337215320,1725502246999,-500.0,0.00014983,2]
[337215321,1725502247008,-500.0,0.00014983,2]
[337215322,1725502247017,-500.0,0.00014983,2]
[337215323,1725502247026,-838.99,0.00014983,2]
[337215324,1725502247036,-500.0,0.00014983,2]
[337215325,1725502247045,-500.0,0.00014983,2]
[337215326,1725502247054,-818.93,0.00014983,2]
[337215327,1725502247064,-186.45979503,0.00014983,2]
[337215328,1725502247073,-664.81,0.00014983,2]
[337215329,1725502247083,-500.0,0.00014983,2]
[337215330,1725502247092,-500.0,0.00014983,2]
[337215331,1725502247101,-500.0,0.00014983,2]
[337215332,1725502247111,-500.0,0.00014983,2]
[337215333,1725502247120,-1145.4,0.00014983,2]
[337215334,1725502247130,-500.0,0.00014983,2]
[337215335,1725502247140,-598.14,0.00014984,2]
[337215336,1725502247149,-947.64,0.00014984,2]
[337215337,1725502247158,-927.4,0.00014984,2]
[337215338,1725502247168,-677.56,0.00014984,2]
[337215339,1725502247177,-500.0,0.00014984,2]
[337215340,1725502247186,-500.0,0.00014984,2]
[337215341,1725502247196,-830.56,0.00014984,2]
[337215342,1725502247205,-500.0,0.00014984,2]
[337215343,1725502247214,-500.0,0.00014984,2]
[337215344,1725502247224,-500.0,0.00014984,2]
[337215345,1725502247233,-709.38,0.00014984,2]
[337215346,1725502247242,-1019.32,0.00014984,2]
[337215347,1725502247251,-500.0,0.00014984,2]
[337215348,1725502247260,-501.33934555,0.00014984,2]
[337215349,1725502247269,-2802.27,0.00014984,2]
[337215350,1725502247279,-652.69,0.00014984,2]
[337215351,1725502247288,-2751.52,0.00014984,2]
[337215352,1725502247297,-1016.74,0.00014984,2]
[337215353,1725502247307,-3672.75,0.00014984,2]
[337215354,1725502247317,-1524.3,0.00014984,2]
[337215355,1725502247326,-8066.97,0.00014984,2]
[337215356,1725502247335,-5714.32,0.00014984,2]
[337215357,1725502247345,-8553.38,0.00014984,2]
[337215358,1725502247354,-500.0,0.00014984,2]
[337215359,1725502247363,-771.03,0.00014984,2]
[337215360,1725502247373,-534.43965244,0.00014984,2]
[337215361,1725502247386,-3230.85,0.00014984,2]
[337215362,1725502247395,-890.6,0.00014984,2]
[337215363,1725502247404,-685.43,0.00014984,2]
[337215364,1725502247414,-1112.21,0.00014984,2]
[337215365,1725502247424,-500.0,0.00014984,2]
[337215366,1725502247434,-730.44,0.00014984,2]
[337215367,1725502247443,-500.0,0.00014984,2]
[337215368,1725502247452,-500.0,0.00014984,2]
[337215369,1725502247464,-1716.15,0.00014984,2]
[337215370,1725502247474,-500.0,0.00014984,2]
[337215371,1725502247483,-546.52,0.00014984,2]
[337215372,1725502247492,-500.0,0.00014984,2]
[337215373,1725502247501,-7530.58,0.00014984,2]
[337215374,1725502247510,-500.0,0.00014984,2]
[337215375,1725502247519,-500.0,0.00014984,2]
[337215376,1725502247528,-500.0,0.00014984,2]
[337215377,1725502247537,-500.0,0.00014984,2]
[337215378,1725502247546,-2647.56,0.00014984,2]
[337215379,1725502247555,-1781.56,0.00014984,2]
[337215380,1725502247564,-856.41,0.00014984,2]
[337215381,1725502247573,-500.0,0.00014984,2]
[337215382,1725502247583,-532.89,0.00014984,2]
[337215383,1725502247592,-500.0,0.00014984,2]
[337215384,1725502247602,-1406.35,0.00014984,2]
[337215385,1725502247611,-638.25,0.00014984,2]
[337215386,1725502247620,-500.0,0.00014984,2]
[337215387,1725502247630,-688.18,0.00014984,2]
[337215388,1725502247639,-513.4,0.00014984,2]
[337215389,1725502247648,-500.0,0.00014984,2]
[337215390,1725502247657,-500.0,0.00014984,2]
[337215391,1725502247666,-452.06030946,0.00014984,2]
[337215392,1725502247676,-500.0,0.00014984,2]
[337215393,1725502247685,-500.0,0.00014984,2]
[337215394,1725502247695,-500.0,0.00014984,2]
[337215395,1725502247704,-500.0,0.00014984,2]
[337215396,1725502247714,-500.0,0.00014984,2]
[337215397,1725502247723,-1629.09,0.00014984,2]
[337215398,1725502247733,-500.0,0.00014984,2]
[337215399,1725502247743,-1019.26,0.00014984,2]
[337215400,1725502247752,-500.0,0.00014984,2]
[337215401,1725502247761,-623.61,0.00014984,2]
[337215402,1725502247770,-500.0,0.00014984,2]
[337215403,1725502247780,-500.0,0.00014984,2]
[337215404,1725502247789,-1044.58,0.00014984,2]
[337215405,1725502247798,-500.0,0.00014984,2]
[337215406,1725502247807,-500.0,0.00014984,2]
[337215407,1725502247816,-500.0,0.00014984,2]
[337215408,1725502247825,-500.0,0.00014984,2]
[337215409,1725502247834,-500.0,0.00014984,2]
[337215410,1725502247843,-500.0,0.00014984,2]
[337215411,1725502247853,-1493.11,0.00014984,2]
[337215412,1725502247862,-500.0,0.00014984,2]
[337215413,1725502247872,-621.25,0.00014984,2]
[337215414,1725502247881,-2802.27,0.00014985,2]
[337215415,1725502247890,-652.69,0.00014985,2]
[337215416,1725502247899,-2751.52,0.00014985,2]
[337215417,1725502247911,-3672.75,0.00014985,2]
[337215418,1725502247920,-1524.3,0.00014985,2]
[337215419,1725502247929,-500.0,0.00014985,2]
[337215420,1725502247938,-771.03,0.00014985,2]
[337215421,1725502247947,-3230.85,0.00014985,2]